[Event "Swedish U16 Team Championship 2019 - Final"]
[Site "Molnlycke Kulturhus, Biblioteksgatan 2, Molnlycke, Sweden"]
[Date "2019.08.18"]
[Round "5.13"]
[White "Ytterberg, Felix"]
[Black "Soderstrom, Adrian"]
[Result "0-1"]
[TimeControl "90 minutes + 30 seconds per move from move one."]
[WhiteElo "2033"]
[BlackElo "1970"]

1. d4 {[%clk 01:29:34]} {[%emt 00:01:21]} Nf6 {[%clk 01:30:37]} {[%emt
00:00:27]} 2. Nf3 {[%clk 01:29:43]} {[%emt 00:00:21]} g6 {[%clk 01:30:57]}
{[%emt 00:00:10]} 3. b3 {[%clk 01:29:59]} {[%emt 00:00:12]} Bg7 {[%clk
01:30:30]} {[%emt 00:00:58]} 4. Bb2 {[%clk 01:29:39]} {[%emt 00:00:43]} O-O
{[%clk 01:30:34]} {[%emt 00:00:33]} 5. e3 {[%clk 01:29:48]} {[%emt 00:00:20]}
d6 {[%clk 01:20:29]} {[%emt 00:10:36]} 6. Be2 {[%clk 01:16:49]} {[%emt
00:13:16]} Nbd7 {[%clk 01:18:54]} {[%emt 00:02:17]} 7. O-O {[%clk 01:14:34]}
{[%emt 00:02:41]} e5 {[%clk 01:15:50]} {[%emt 00:03:39]} 8. dxe5 {[%clk
01:13:00]} {[%emt 00:02:04]} Ng4 {[%clk 01:15:51]} {[%emt 00:00:28]} 9. c4
{[%clk 01:11:10]} {[%emt 00:02:19]} Ngxe5 {[%clk 01:14:41]} {[%emt 00:01:40]}
10. Nc3 {[%clk 01:09:56]} {[%emt 00:01:43]} Nc5 {[%clk 01:06:27]} {[%emt
00:08:46]} 11. Nd4 {[%clk 01:05:26]} {[%emt 00:04:59]} Nc6 {[%clk 00:56:08]}
{[%emt 00:10:50]} 12. Nxc6 {[%clk 01:03:17]} {[%emt 00:02:39]} bxc6 {[%clk
00:56:28]} {[%emt 00:00:08]} 13. Bf3 {[%clk 01:02:27]} {[%emt 00:01:20]} Qe8
{[%clk 00:43:41]} {[%emt 00:13:18]} 14. Qe2 {[%clk 00:43:51]} {[%emt 00:19:05]}
Bf5 {[%clk 00:36:40]} {[%emt 00:07:32]} 15. Rfd1 {[%clk 00:35:20]} {[%emt
00:08:58]} Ne4 {[%clk 00:35:27]} {[%emt 00:01:46]} 16. Nxe4 {[%clk 00:35:35]}
{[%emt 00:00:16]} Bxe4 {[%clk 00:35:39]} {[%emt 00:00:18]} 17. Bxg7 {[%clk
00:35:30]} {[%emt 00:00:31]} Kxg7 {[%clk 00:35:41]} {[%emt 00:00:30]} 18. Bxe4
{[%clk 00:35:48]} {[%emt 00:00:13]} Qxe4 {[%clk 00:36:04]} {[%emt 00:00:06]} 19.
Rd4 {[%clk 00:35:50]} {[%emt 00:00:24]} Qe5 {[%clk 00:35:42]} {[%emt 00:00:55]}
20. Rad1 {[%clk 00:36:03]} {[%emt 00:00:14]} Rae8 {[%clk 00:32:38]} {[%emt
00:03:37]} 21. Qf3 {[%clk 00:32:39]} {[%emt 00:03:51]} c5 {[%clk 00:32:13]}
{[%emt 00:01:00]} 22. R4d2 {[%clk 00:32:57]} {[%emt 00:00:11]} Qe4 {[%clk
00:31:54]} {[%emt 00:00:49]} 23. Qh3 {[%clk 00:30:14]} {[%emt 00:03:12]} f5
{[%clk 00:26:38]} {[%emt 00:05:47]} 24. g3 {[%clk 00:27:23]} {[%emt 00:03:21]}
Re6 {[%clk 00:23:23]} {[%emt 00:03:45]} 25. Qg2 {[%clk 00:27:37]} {[%emt
00:00:17]} g5 {[%clk 00:21:30]} {[%emt 00:02:24]} 26. Rd5 {[%clk 00:26:22]}
{[%emt 00:01:44]} h6 {[%clk 00:20:37]} {[%emt 00:01:24]} 27. R1d3 {[%clk
00:25:55]} {[%emt 00:00:54]} Ref6 {[%emt 00:03:12]} 28. f3 {[%clk 00:24:56]}
{[%emt 00:00:38]} Qe7 {[%clk 00:19:13]} {[%emt 00:00:05]} 29. Qd2 {[%clk
00:24:57]} {[%emt 00:00:29]} g4 {[%clk 00:18:03]} {[%emt 00:01:40]} 30. Rxc5
{[%clk 00:23:51]} {[%emt 00:01:37]} gxf3 {[%clk 00:11:48]} {[%emt 00:06:45]} 31.
Ra5 {[%clk 00:23:48]} {[%emt 00:00:31]} Re6 {[%clk 00:09:32]} {[%emt 00:02:48]}
32. Rxa7 {[%clk 00:23:17]} {[%emt 00:01:00]} f4 {[%clk 00:09:41]} {[%emt
00:00:22]} 33. Qc3+ {[%clk 00:22:46]} {[%emt 00:01:00]} Kh7 {[%clk 00:09:11]}
{[%emt 00:01:00]} 34. Qc2 {[%clk 00:21:57]} {[%emt 00:01:18]} Rg6 {[%clk
00:08:16]} {[%emt 00:01:26]} 35. Qf2 {[%clk 00:21:44]} {[%emt 00:00:43]} fxg3
{[%clk 00:07:33]} {[%emt 00:01:13]} 36. hxg3 {[%clk 00:21:52]} {[%emt
00:00:21]} Qg7 {[%clk 00:06:09]} {[%emt 00:01:54]} 37. Kh2 {[%clk 00:21:47]}
{[%emt 00:00:34]} Rf5 {[%clk 00:03:39]} {[%emt 00:03:02]} 38. Rd5 {[%clk
00:21:49]} {[%emt 00:00:29]} Rfg5 {[%clk 00:02:02]} {[%emt 00:02:07]} 39. Rxg5
{[%clk 00:21:50]} {[%emt 00:00:29]} hxg5 {[%clk 00:02:24]} {[%emt 00:00:08]} 40.
Rxc7 {[%clk 00:19:48]} {[%emt 00:02:32]} Rh6+ {[%clk 00:02:36]} {[%emt
00:00:18]} 41. Kg1 {[%clk 00:20:12]} {[%emt 00:00:06]} Qxc7 {[%clk 00:02:58]}
{[%emt 00:00:08]} 42. Qxf3 {[%clk 00:20:34]} {[%emt 00:00:09]} Qg7 {[%clk
00:02:37]} {[%emt 00:00:51]} 43. Qf5+ {[%clk 00:20:27]} {[%emt 00:00:36]} Rg6
{[%clk 00:02:49]} {[%emt 00:00:19]} 44. Qh3+ {[%clk 00:19:59]} {[%emt
00:00:57]} Kg8 {[%clk 00:02:54]} {[%emt 00:00:24]} 45. Qc8+ {[%clk 00:20:20]}
{[%emt 00:00:10]} Qf8 {[%clk 00:02:38]} {[%emt 00:00:45]} 46. Qg4 {[%clk
00:20:27]} {[%emt 00:00:23]} Qf6 {[%clk 00:01:51]} {[%emt 00:01:19]} 47. Qc8+
{[%clk 00:20:38]} {[%emt 00:00:19]} Kg7 {[%clk 00:02:08]} {[%emt 00:00:12]} 48.
Qd7+ {[%clk 00:20:28]} {[%emt 00:00:41]} Qf7 {[%clk 00:02:32]} {[%emt
00:00:06]} 49. Qg4 {[%clk 00:20:39]} {[%emt 00:00:18]} Qa7 {[%clk 00:02:23]}
{[%emt 00:00:39]} 50. Qe4 {[%clk 00:19:41]} {[%emt 00:01:29]} Rf6 {[%clk
00:02:34]} {[%emt 00:00:19]} 51. a4 {[%clk 00:19:20]} {[%emt 00:00:51]} Qf7
{[%clk 00:02:54]} {[%emt 00:00:09]} 52. Qg2 {[%clk 00:19:34]} {[%emt 00:00:15]}
Rf3 {[%clk 00:02:33]} {[%emt 00:00:51]} 53. a5 {[%clk 00:19:04]} {[%emt
00:01:01]} g4 {[%clk 00:02:02]} {[%emt 00:01:02]} 54. a6 {[%clk 00:18:25]}
{[%emt 00:01:09]} Qa7 {[%clk 00:02:16]} {[%emt 00:00:14]} 55. Qb2+ {[%clk
00:17:06]} {[%emt 00:01:49]} Kg8 {[%clk 00:02:38]} {[%emt 00:00:08]} 56. Qd2
{[%clk 00:17:02]} {[%emt 00:00:36]} Qxe3+ {[%clk 00:02:37]} {[%emt 00:00:31]}
57. Qxe3 {[%clk 00:16:59]} {[%emt 00:00:33]} Rxe3 {[%clk 00:03:06]} 58. b4
{[%clk 00:16:40]} {[%emt 00:00:48]} Rxg3+ {[%clk 00:03:29]} {[%emt 00:00:07]}
59. Kf2 {[%clk 00:16:52]} {[%emt 00:00:18]} Ra3 {[%clk 00:03:54]} {[%emt
00:00:04]} 60. b5 {[%clk 00:17:17]} {[%emt 00:00:06]} Kf7 {[%clk 00:04:12]}
{[%emt 00:00:11]} 61. Ke2 {[%clk 00:17:20]} {[%emt 00:00:28]} Ke6 {[%clk
00:04:23]} {[%emt 00:00:18]} 62. Kd2 {[%clk 00:17:38]} {[%emt 00:00:12]} Kd7
{[%clk 00:04:37]} {[%emt 00:00:17]} 63. Kc2 {[%clk 00:15:34]} {[%emt 00:02:34]}
g3 {[%clk 00:05:00]} {[%emt 00:00:07]} 64. Kb2 {[%clk 00:15:56]} {[%emt
00:00:08]} Rxa6 {[%clk 00:05:18]} {[%emt 00:00:13]} 65. bxa6 {[%clk 00:15:49]}
{[%emt 00:00:37]} Kc6 {[%clk 00:05:43]} {[%emt 00:00:04]} 66. Kc3 {[%clk
00:16:03]} {[%emt 00:00:16]} g2 {[%clk 00:06:02]} {[%emt 00:00:10]} 67. c5
{[%clk 00:15:49]} {[%emt 00:00:44]} dxc5 {[%clk 00:06:23]} {[%emt 00:00:10]} 68.
Kc4 {[%clk 00:16:04]} {[%emt 00:00:15]} g1=Q {[%clk 00:06:44]} {[%emt
00:00:09]} 69. a7 {[%clk 00:16:31]} {[%emt 00:00:04]} Qg8+ {[%clk 00:06:54]}
{[%emt 00:00:18]} 70. Kc3 {[%clk 00:16:51]} {[%emt 00:00:11]} Qg7+ {[%clk
00:07:18]} {[%emt 00:00:05]} 71. Kc4 {[%clk 00:17:02]} {[%emt 00:00:19]} Qxa7
{[%clk 00:07:44]} {[%emt 00:00:06]} 0-1

[Event "Swedish U16 Team Championship 2019 - Final"]
[Site "Molnlycke Kulturhus, Biblioteksgatan 2, Molnlycke, Sweden"]
[Date "2019.08.18"]
[Round "5.14"]
[White "Falkevall, Axel"]
[Black "Ivarsson, Sebastian"]
[Result "1-0"]
[TimeControl "90 minutes + 30 seconds per move from move one."]
[WhiteElo "2046"]
[BlackElo "2001"]

1. e4 {[%clk 01:30:59]} {[%emt 00:00:01]} e5 {[%clk 01:30:35]} {[%emt
00:00:23]} 2. Nf3 {[%clk 01:31:20]} {[%emt 00:00:10]} Nc6 {[%clk 01:30:41]}
{[%emt 00:00:23]} 3. Bb5 {[%clk 01:31:43]} {[%emt 00:00:07]} a6 {[%clk
01:30:48]} {[%emt 00:00:23]} 4. Ba4 {[%clk 01:32:10]} {[%emt 00:00:04]} Nf6
{[%clk 01:30:40]} {[%emt 00:00:38]} 5. O-O {[%clk 01:32:06]} {[%emt 00:00:34]}
Be7 {[%clk 01:30:20]} {[%emt 00:00:50]} 6. Re1 {[%clk 01:32:06]} {[%emt
00:00:30]} b5 {[%clk 01:30:02]} {[%emt 00:00:46]} 7. Bb3 {[%clk 01:32:33]}
{[%emt 00:00:04]} d6 {[%clk 01:30:09]} {[%emt 00:00:23]} 8. c3 {[%clk
01:32:58]} {[%emt 00:00:05]} O-O {[%clk 01:30:11]} {[%emt 00:00:36]} 9. h3
{[%clk 01:33:20]} {[%emt 00:00:01]} Nb8 {[%clk 01:29:19]} {[%emt 00:01:57]} 10.
d4 {[%clk 01:33:36]} Nbd7 {[%clk 01:29:39]} 11. Nbd2 {[%clk 01:33:56]} Bb7
{[%clk 01:29:28]} {[%emt 00:00:39]} 12. Bc2 {[%clk 01:34:10]} {[%emt 00:00:16]}
Re8 {[%clk 01:29:25]} {[%emt 00:00:33]} 13. Nf1 {[%clk 01:34:06]} {[%emt
00:00:35]} Bf8 {[%clk 01:29:09]} {[%emt 00:00:46]} 14. Ng3 {[%clk 01:34:22]}
{[%emt 00:00:15]} g6 {[%clk 01:29:30]} {[%emt 00:00:09]} 15. Bg5 {[%clk
01:33:48]} {[%emt 00:01:03]} h6 {[%clk 01:24:44]} {[%emt 00:05:16]} 16. Bd2
{[%clk 01:32:09]} {[%emt 00:02:01]} c5 {[%clk 01:22:47]} {[%emt 00:02:33]} 17.
d5 {[%clk 01:31:08]} {[%emt 00:01:33]} c4 {[%clk 01:21:30]} {[%emt 00:01:47]}
18. Qc1 {[%clk 01:29:10]} {[%emt 00:02:27]} Kh7 {[%clk 01:16:52]} {[%emt
00:05:09]} 19. Nh2 {[%clk 01:20:45]} {[%emt 00:08:56]} Nc5 {[%clk 00:44:23]}
{[%emt 00:32:58]} 20. Be3 {[%clk 01:11:06]} {[%emt 00:10:09]} Qc7 {[%clk
00:42:07]} {[%emt 00:02:46]} 21. Ng4 {[%clk 01:07:56]} {[%emt 00:03:41]} Ng8
{[%clk 00:40:29]} {[%emt 00:02:07]} 22. Qd2 {[%clk 01:06:01]} {[%emt 00:02:24]}
h5 {[%clk 00:35:42]} {[%emt 00:05:19]} 23. Nh2 {[%clk 01:05:19]} {[%emt
00:01:11]} Bh6 {[%clk 00:34:51]} {[%emt 00:01:21]} 24. Rf1 {[%clk 01:01:08]}
{[%emt 00:04:40]} Bxe3 {[%clk 00:26:37]} {[%emt 00:08:45]} 25. Qxe3 {[%clk
00:58:28]} {[%emt 00:03:09]} a5 {[%emt 00:07:42]} 26. Rae1 {[%emt 00:00:57]} b4
{[%emt 00:01:03]} 27. f4 {[%clk 00:46:18]} {[%emt 00:01:31]} b3 28. axb3 {[%emt
00:06:12]} cxb3 {[%clk 00:23:48]} {[%emt 00:01:02]} 29. Bb1 {[%emt 00:05:36]}
Ba6 {[%clk 00:18:50]} {[%emt 00:01:14]} 30. Rf2 {[%clk 00:43:43]} {[%emt
00:02:11]} exf4 {[%clk 00:15:03]} {[%emt 00:04:19]} 31. Qxf4 {[%clk 00:41:54]}
{[%emt 00:02:08]} f6 {[%emt 00:09:22]} 32. Re3 {[%clk 00:35:21]} {[%emt
00:03:17]} Kg7 {[%clk 00:07:43]} {[%emt 00:02:54]} 33. Nf3 {[%clk 00:30:48]}
{[%emt 00:05:03]} a4 {[%emt 00:03:02]} 34. Nd4 {[%clk 00:26:18]} {[%emt
00:02:07]} a3 {[%clk 00:03:49]} {[%emt 00:04:46]} 35. bxa3 {[%clk 00:23:21]}
{[%emt 00:03:26]} Bc4 {[%emt 00:16:44]} 36. Nxh5+ {[%clk 00:03:43]} {[%emt
00:03:28]} gxh5 {[%clk 00:04:18]} {[%emt 00:00:27]} 37. Rg3+ {[%clk 00:03:48]}
{[%emt 00:00:26]} Kh8 {[%clk 00:04:22]} {[%emt 00:00:26]} 38. Qh4 {[%clk
00:03:53]} {[%emt 00:00:25]} Qf7 {[%clk 00:01:59]} {[%emt 00:02:53]} 39. Nf5
{[%clk 00:03:09]} {[%emt 00:01:14]} Bxd5 {[%clk 00:00:46]} {[%emt 00:01:42]} 40.
Nxd6 {[%clk 00:03:03]} {[%emt 00:00:36]} Qh7 {[%clk 00:00:48]} {[%emt
00:00:29]} 41. Nxe8 {[%clk 00:02:31]} {[%emt 00:01:02]} Rxe8 {[%clk 00:01:12]}
{[%emt 00:00:06]} 42. Rf5 {[%clk 00:02:38]} {[%emt 00:00:23]} Re5 {[%clk
00:01:26]} {[%emt 00:00:16]} 43. Rxe5 {[%clk 00:02:09]} {[%emt 00:00:59]} fxe5
{[%emt 00:00:13]} 44. Rg5 Nf6 {[%clk 00:00:39]} {[%emt 00:01:39]} 45. Rf5
{[%clk 00:02:27]} {[%emt 00:00:36]} Ncd7 {[%clk 00:00:35]} {[%emt 00:00:35]} 46.
Rxf6 {[%clk 00:02:33]} {[%emt 00:00:24]} Nxf6 {[%clk 00:00:32]} {[%emt
00:00:32]} 47. Qxf6+ {[%clk 00:02:58]} {[%emt 00:00:05]} Kg8 {[%clk 00:00:41]}
{[%emt 00:00:21]} 48. Qd8+ {[%clk 00:03:22]} {[%emt 00:00:05]} Kg7 {[%clk
00:00:46]} {[%emt 00:00:25]} 49. Qxd5 {[%clk 00:03:37]} {[%emt 00:00:16]} Qh6
{[%clk 00:00:53]} {[%emt 00:00:21]} 50. Qxe5+ {[%clk 00:03:57]} {[%emt
00:00:12]} Kg8 {[%clk 00:01:16]} {[%emt 00:00:07]} 51. Qd5+ {[%clk 00:03:18]}
{[%emt 00:01:10]} Kg7 {[%clk 00:01:38]} {[%emt 00:00:08]} 52. Qb7+ {[%clk
00:02:36]} {[%emt 00:01:11]} Kg8 {[%clk 00:02:04]} {[%emt 00:00:05]} 53. Qxb3+
{[%clk 00:03:02]} {[%emt 00:00:04]} 1-0

[Event "Swedish U16 Team Championship 2019 - Final"]
[Site "Molnlycke Kulturhus, Biblioteksgatan 2, Molnlycke, Sweden"]
[Date "2019.08.18"]
[Round "5.15"]
[White "Ljung, Harald"]
[Black "Grahn, Vidar"]
[Result "0-1"]
[TimeControl "90 minutes + 30 seconds per move from move one."]
[WhiteElo "1811"]
[BlackElo "1898"]

1. d4 {[%clk 01:30:53]} {[%emt 00:00:06]} d5 {[%clk 01:30:22]} {[%emt
00:00:39]} 2. c4 {[%clk 01:30:56]} {[%emt 00:00:25]} c6 {[%clk 01:30:49]}
{[%emt 00:00:04]} 3. Nc3 {[%clk 01:30:49]} {[%emt 00:00:37]} Nf6 {[%clk
01:31:14]} {[%emt 00:00:05]} 4. Nf3 {[%clk 01:30:31]} {[%emt 00:00:48]} e6
{[%clk 01:31:37]} {[%emt 00:00:07]} 5. Bg5 {[%clk 01:29:55]} {[%emt 00:01:06]}
dxc4 {[%clk 01:32:00]} {[%emt 00:00:07]} 6. e4 {[%clk 01:24:54]} {[%emt
00:05:32]} b5 {[%clk 01:32:01]} {[%emt 00:00:28]} 7. e5 {[%clk 01:20:06]}
{[%emt 00:05:19]} h6 {[%clk 01:32:26]} {[%emt 00:00:05]} 8. Bh4 {[%clk
01:18:52]} {[%emt 00:01:44]} g5 {[%clk 01:32:50]} {[%emt 00:00:06]} 9. Nxg5
{[%clk 01:07:54]} {[%emt 00:11:28]} hxg5 {[%clk 01:33:13]} {[%emt 00:00:06]} 10.
Bxg5 {[%clk 01:08:21]} {[%emt 00:00:03]} Nbd7 {[%clk 01:33:38]} {[%emt
00:00:06]} 11. exf6 {[%clk 01:06:25]} {[%emt 00:02:26]} Bb7 {[%clk 01:33:58]}
{[%emt 00:00:10]} 12. Be3 {[%clk 00:51:16]} {[%emt 00:15:38]} Nxf6 {[%clk
01:28:44]} {[%emt 00:05:44]} 13. Be2 {[%clk 00:43:55]} {[%emt 00:07:51]} Nd5
{[%clk 01:22:49]} {[%emt 00:06:25]} 14. Nxd5 {[%clk 00:41:59]} {[%emt
00:02:25]} cxd5 {[%clk 01:23:02]} {[%emt 00:00:18]} 15. g3 {[%clk 00:38:09]}
{[%emt 00:04:20]} Qa5+ {[%clk 01:18:27]} {[%emt 00:05:04]} 16. Bd2 {[%clk
00:36:11]} {[%emt 00:02:28]} Qb6 {[%clk 01:17:59]} {[%emt 00:00:58]} 17. Bf4
{[%clk 00:32:00]} {[%emt 00:04:42]} Bg7 {[%clk 01:16:57]} {[%emt 00:01:32]} 18.
Be5 {[%clk 00:25:20]} {[%emt 00:07:10]} Bxe5 {[%clk 01:16:51]} {[%emt
00:00:36]} 19. dxe5 {[%clk 00:25:45]} {[%emt 00:00:05]} d4 {[%clk 01:15:55]}
{[%emt 00:01:26]} 20. Bf3 {[%clk 00:23:58]} {[%emt 00:02:18]} O-O-O {[%clk
01:13:15]} {[%emt 00:03:08]} 21. Bxb7+ {[%clk 00:14:48]} {[%emt 00:09:39]} Qxb7
{[%clk 01:13:10]} 22. f3 {[%clk 00:14:39]} {[%emt 00:01:16]} Qd5 {[%clk
01:13:09]} 23. Qe2 {[%clk 00:13:24]} {[%emt 00:02:16]} Rh5 {[%clk 01:13:09]} 24.
Kf2 {[%clk 00:11:58]} {[%emt 00:02:27]} Rxe5 {[%clk 01:12:40]} 25. Qd2 {[%clk
00:11:56]} {[%emt 00:01:29]} Re3 {[%clk 01:08:56]} 26. Qd1 {[%clk 00:10:17]}
{[%emt 00:06:24]} Rh8 {[%clk 01:07:07]} 27. Rc1 {[%clk 00:09:48]} {[%emt
00:03:18]} e5 {[%clk 01:04:30]} 28. Rc3 {[%clk 00:08:57]} {[%emt 00:04:28]} Rd8
{[%clk 01:00:16]} 29. Rc2 {[%clk 00:07:41]} {[%emt 00:06:30]} e4 {[%clk
00:52:39]} 30. f4 {[%clk 00:06:35]} {[%emt 00:09:42]} Rf3+ {[%clk 00:52:39]} 31.
Kg2 {[%clk 00:06:45]} {[%emt 00:00:49]} 0-1

[Event "Swedish U16 Team Championship 2019 - Final"]
[Site "Molnlycke Kulturhus, Biblioteksgatan 2, Molnlycke, Sweden"]
[Date "2019.08.18"]
[Round "5.16"]
[White "Bergqvist, Gustav 2004"]
[Black "Dingertz, Erik"]
[Result "0-1"]
[TimeControl "90 minutes + 30 seconds per move from move one."]
[WhiteElo "1833"]
[BlackElo "1888"]

1. e4 {[%clk 01:30:43]} {[%emt 00:00:16]} e5 {[%clk 01:30:28]} {[%emt
00:00:32]} 2. Nf3 {[%clk 01:31:08]} {[%emt 00:00:06]} Nc6 {[%clk 01:30:47]}
{[%emt 00:00:08]} 3. Nc3 {[%clk 01:31:36]} {[%emt 00:00:05]} Nf6 {[%clk
01:30:57]} {[%emt 00:00:20]} 4. d4 {[%clk 01:32:00]} {[%emt 00:00:06]} exd4
{[%clk 01:30:04]} {[%emt 00:01:52]} 5. Nxd4 {[%clk 01:32:58]} {[%emt 00:00:02]}
Bb4 {[%clk 01:28:44]} {[%emt 00:01:49]} 6. Nxc6 {[%clk 01:33:20]} {[%emt
00:00:09]} bxc6 {[%clk 01:29:08]} {[%emt 00:00:32]} 7. Bd3 {[%clk 01:33:35]}
O-O {[%clk 01:27:01]} {[%emt 00:02:25]} 8. O-O {[%clk 01:32:54]} {[%emt
00:01:11]} Re8 {[%clk 01:25:43]} {[%emt 00:01:47]} 9. Qf3 {[%clk 01:30:52]}
{[%emt 00:02:34]} h6 {[%clk 01:09:23]} {[%emt 00:16:52]} 10. Bf4 {[%clk
01:24:06]} {[%emt 00:07:15]} d6 {[%clk 01:06:33]} {[%emt 00:03:20]} 11. h3
{[%clk 01:21:47]} {[%emt 00:02:49]} Bb7 {[%clk 00:57:56]} {[%emt 00:09:07]} 12.
Rad1 {[%clk 01:08:22]} {[%emt 00:13:54]} Bxc3 {[%clk 00:53:43]} {[%emt
00:04:44]} 13. bxc3 {[%clk 01:08:28]} {[%emt 00:00:25]} c5 {[%clk 00:53:50]}
{[%emt 00:00:23]} 14. Rb1 {[%clk 01:03:57]} {[%emt 00:05:00]} Bxe4 {[%clk
00:38:57]} {[%emt 00:15:24]} 15. Bxe4 {[%clk 01:03:08]} {[%emt 00:01:20]} Nxe4
{[%clk 00:37:41]} {[%emt 00:01:45]} 16. Rfe1 {[%clk 01:01:24]} {[%emt
00:02:14]} d5 {[%clk 00:32:41]} {[%emt 00:05:30]} 17. Rb7 {[%clk 00:55:18]}
{[%emt 00:06:36]} c6 {[%clk 00:32:32]} {[%emt 00:00:39]} 18. Reb1 {[%clk
00:45:59]} {[%emt 00:09:49]} Qf6 {[%clk 00:31:19]} {[%emt 00:01:43]} 19. R1b3
{[%clk 00:39:53]} {[%emt 00:06:35]} c4 {[%clk 00:21:52]} {[%emt 00:09:57]} 20.
Ra3 {[%clk 00:39:19]} {[%emt 00:01:04]} Re7 {[%clk 00:22:08]} {[%emt 00:00:14]}
21. Rb8+ {[%clk 00:34:02]} {[%emt 00:05:47]} Re8 {[%clk 00:19:06]} {[%emt
00:03:32]} 22. Rb7 {[%clk 00:32:47]} {[%emt 00:01:45]} a5 {[%clk 00:18:29]}
{[%emt 00:01:06]} 23. Bc7 {[%clk 00:26:48]} {[%emt 00:06:30]} Qe7 {[%clk
00:17:20]} {[%emt 00:01:36]} 0-1

[Event "Swedish U16 Team Championship 2019 - Final"]
[Site "Molnlycke Kulturhus, Biblioteksgatan 2, Molnlycke, Sweden"]
[Date "2019.08.18"]
[Round "5.17"]
[White "Anfalt, Erik"]
[Black "Tran, Alva Ling"]
[Result "0-1"]
[TimeControl "90 minutes + 30 seconds per move from move one."]
[WhiteElo "1558"]
[BlackElo "1735"]

1. e4 {[%clk 01:30:59]} c5 {[%clk 01:30:48]} {[%emt 00:00:13]} 2. Nc3 {[%clk
01:31:14]} {[%emt 00:00:15]} Nc6 {[%clk 01:30:56]} {[%emt 00:00:22]} 3. f4
{[%clk 01:31:25]} {[%emt 00:00:19]} g6 {[%clk 01:29:59]} {[%emt 00:01:27]} 4.
Nf3 {[%clk 01:31:41]} {[%emt 00:00:13]} Bg7 {[%clk 01:30:16]} {[%emt 00:00:14]}
5. Bb5 {[%clk 01:31:57]} {[%emt 00:00:14]} Nd4 {[%clk 01:29:39]} {[%emt
00:01:07]} 6. O-O {[%clk 01:31:02]} {[%emt 00:01:35]} a6 {[%clk 01:28:27]}
{[%emt 00:01:58]} 7. Bd3 {[%clk 01:30:07]} {[%emt 00:01:00]} e6 {[%clk
01:25:47]} {[%emt 00:03:10]} 8. Nxd4 {[%clk 01:28:23]} {[%emt 00:02:13]} cxd4
{[%clk 01:22:23]} {[%emt 00:03:54]} 9. Ne2 {[%clk 01:28:05]} {[%emt 00:00:48]}
d6 {[%clk 01:11:37]} {[%emt 00:11:16]} 10. Qe1 {[%clk 01:26:02]} {[%emt
00:02:33]} e5 {[%clk 01:01:56]} {[%emt 00:10:13]} 11. Qf2 {[%clk 01:23:37]}
{[%emt 00:02:53]} Nf6 {[%clk 01:01:03]} {[%emt 00:01:24]} 12. Ng3 {[%clk
01:15:47]} {[%emt 00:08:20]} O-O {[%clk 00:57:23]} {[%emt 00:04:10]} 13. Bc4
{[%clk 01:08:36]} {[%emt 00:07:40]} Ng4 {[%clk 00:46:40]} {[%emt 00:11:13]} 14.
Qf3 {[%clk 01:07:05]} {[%emt 00:01:59]} exf4 {[%clk 00:45:47]} {[%emt
00:01:25]} 15. Qxf4 {[%clk 01:07:31]} {[%emt 00:00:03]} Qh4 {[%clk 00:44:29]}
{[%emt 00:01:49]} 16. h3 {[%clk 00:22:40]} {[%emt 00:45:21]} Be5 {[%clk
00:29:40]} {[%emt 00:15:19]} 17. Qf3 {[%clk 00:22:15]} {[%emt 00:00:53]} Bxg3
{[%clk 00:28:39]} {[%emt 00:01:33]} 18. Qe2 {[%clk 00:05:25]} {[%emt 00:17:19]}
Ne5 {[%clk 00:25:20]} {[%emt 00:03:50]} 19. Bb3 {[%clk 00:05:12]} {[%emt
00:00:43]} Bg4 {[%clk 00:24:23]} {[%emt 00:01:27]} 20. Rxf7 {[%clk 00:04:03]}
{[%emt 00:01:39]} Bxe2 {[%clk 00:21:44]} {[%emt 00:03:09]} 0-1